bitfinex-derivatives/quotes_BNBF0:USTF0_20250101
["timestamp","ask_amount","ask_price","bid_price","bid_amount"]
[1735723179751,0.28454764,702.87,701.06,0.28528228]
[1735723179951,0.26221808,702.86,701.06,0.28528228]
[1735723180351,0.28455978,702.84,701.06,0.28528228]
[1735723180650,0.26221808,702.83,701.06,0.28528228]
[1735723182757,1.06616741,702.8,701.06,0.28528228]
[1735723182955,0.26221808,702.79,701.06,0.28528228]
[1735723184058,1.06616741,702.71,701.06,0.28528228]
[1735723184257,0.26221808,702.7,701.1,1.05851545]
[1735723185052,0.26221808,702.7,701.11,0.28526194]
[1735723185252,0.28462052,702.69,701.11,0.28526194]
[1735723185456,0.28462052,702.69,701.18,1.05851545]
[1735723185457,1.06616741,702.6,701.18,1.05851545]
[1735723185655,0.54687911,702.59,701.18,1.05851545]
[1735723185857,0.26221808,702.58,701.18,1.05851545]
[1735723186057,0.28466103,702.59,701.18,1.05851545]
[1735723186356,0.26222618,702.58,701.18,1.05851545]
[1735723186959,0.26222618,702.58,701.26,1.05851545]
[1735723187959,1.06616741,702.49,701.35,1.05851545]
[1735723188258,0.26222618,702.48,701.35,1.05851545]
[1735723188661,0.26223126,702.47,701.35,1.05851545]
[1735723188861,0.26223126,702.48,701.35,1.05851545]
[1735723189162,0.26223126,702.47,701.34,1.05851545]
[1735723190154,1.06616741,702.44,701.37,1.05851545]
[1735723190359,0.26223126,702.43,701.37,1.05851545]
[1735723191355,1.06616741,702.41,701.36,1.05851545]
[1735723191559,0.26223829,702.4,701.36,1.05851545]
[1735723192358,0.26223829,702.4,701.39,1.05851545]
[1735723193462,0.26223829,702.4,701.17,1.05851545]
[1735723193463,0.26223829,702.4,701.35,1.05851545]
[1735723193764,0.26223829,702.39,701.35,1.05851545]
[1735723194063,0.26223829,702.38,701.35,1.05851545]
[1735723194266,0.26223829,702.37,701.35,1.05851545]
[1735723194465,0.26223829,702.37,701.13,0.2852538]
[1735723194466,1.06616741,702.42,701.36,1.05851545]
[1735723194662,0.26223518,702.41,701.36,1.05851545]
[1735723195663,1.32840259,702.41,701.35,1.05851545]
[1735723195862,0.26223518,702.4,701.35,1.05851545]
[1735723196663,0.26222588,702.39,701.38,1.05851545]
[1735723196962,1.06616741,702.43,701.38,1.05851545]
[1735723197160,0.26222485,702.42,701.38,1.05851545]
[1735723197564,1.32839226,702.42,701.38,1.05851545]
[1735723197864,0.26222485,702.41,701.38,1.05851545]
[1735723198565,0.26222485,702.41,701.4,1.05851545]
[1735723198758,1.06616741,702.44,701.4,1.05851545]
[1735723198963,0.26222142,702.43,701.4,1.05851545]
[1735723199366,0.26222586,702.42,701.4,1.05851545]
[1735723199559,1.06616741,702.44,701.4,1.05851545]
[1735723199866,1.06616741,702.43,701.41,1.05851545]
[1735723201167,1.48758741,702.46,701.24,1.05851545]
[1735723201971,0.28466103,702.59,701.24,1.05851545]
[1735723202169,0.28466103,702.59,701.13,0.2852538]
[1735723202170,1.4876192,702.45,701.26,1.05851545]
[1735723202565,0.28466103,702.59,701.26,1.05851545]
[1735723202871,1.4876139,702.44,701.26,1.05851545]
[1735723203171,1.4876139,702.44,701.13,0.2852538]
[1735723203172,0.28466103,702.59,701.27,1.05851545]
[1735723204266,1.48752382,702.58,701.27,1.05851545]
[1735723204466,1.48752382,702.58,701.29,1.05851545]
[1735723207974,1.06616741,702.57,701.26,1.05851545]
[1735723209273,1.48752382,702.58,701.28,1.05851545]
[1735723209274,2.55369123,702.58,701.28,1.05851545]
[1735723209469,0.2622265,702.57,701.28,1.05851545]
[1735723210675,1.06616741,702.47,701.37,1.05851545]
[1735723211574,0.26225027,702.46,701.37,1.05851545]
[1735723211873,1.06616741,702.45,701.26,1.05851545]
[1735723212075,0.26225027,702.44,701.26,1.05851545]
[1735723212976,1.06616741,702.45,701.26,1.05851545]
[1735723213179,1.06616741,702.37,701.26,1.05851545]
[1735723213378,0.26229785,702.36,701.26,1.05851545]
[1735723214378,1.06616741,702.31,701.04,1.05851545]
[1735723214679,0.26234795,702.3,701.04,1.05851545]
[1735723215573,1.06616741,702.12,700.99,1.05851545]
[1735723215775,0.26234795,702.11,700.99,1.05851545]
[1735723216673,0.262367,702.1,700.99,1.05851545]
[1735723216873,0.54723076,702.09,700.99,1.05851545]
[1735723217078,0.262367,702.08,700.9,1.05851545]
[1735723217977,0.262367,702.08,700.86,1.05851545]
[1735723219081,0.28486376,702.09,700.86,1.05851545]
[1735723219284,0.26240063,702.07,700.7,1.05851545]
[1735723219479,0.26239747,702.06,700.7,1.05851545]
[1735723219676,0.54727746,702.05,700.7,1.05851545]
[1735723219876,0.26239747,702.04,700.7,1.05851545]
[1735723220382,0.26239747,702.04,700.66,1.05851545]
[1735723221478,0.26239747,702.04,700.66,1.3439606]
[1735723221682,0.26238278,702.03,700.66,0.28544515]
[1735723221882,0.26238278,702.02,700.66,0.28544515]
[1735723222080,0.26238278,702.01,700.66,0.28544515]
[1735723222282,0.26238278,702.0,700.66,0.28544515]
[1735723222478,0.26237886,701.99,700.66,0.28544515]
[1735723222684,0.26237886,701.98,700.66,0.28544515]
[1735723222883,0.26237886,701.97,700.66,0.28544515]
[1735723223188,0.28487999,702.05,700.66,0.28544515]
[1735723223384,0.26236459,702.04,700.66,0.28544515]
[1735723223684,0.28487999,702.05,700.68,1.05851545]
[1735723224784,0.28487999,702.05,700.66,0.28544515]
[1735723224785,1.48836679,702.04,700.7,1.05851545]
[1735723225383,0.26235578,702.03,700.7,1.05851545]
[1735723225582,1.48836679,702.04,700.71,0.28542478]
[1735723226485,0.2623555,702.03,700.71,0.28542478]
[1735723226884,1.48836679,702.04,700.71,0.28542478]
[1735723227083,0.26235253,702.03,700.71,0.28542478]
[1735723227786,0.26235253,702.03,700.75,1.05851545]
[1735723228981,1.48836679,702.04,700.71,0.28542478]
[1735723228982,1.48836679,702.04,700.78,1.05851545]
[1735723229186,0.2623527,702.03,700.78,1.05851545]
[1735723229386,0.2623527,702.03,700.79,0.2853922]
[1735723229589,0.26235914,702.02,700.79,0.2853922]
[1735723229890,0.26235914,702.01,700.79,0.2853922]
[1735723230082,0.26234973,702.0,700.79,0.2853922]
[1735723230284,1.48836679,702.04,700.79,0.2853922]
[1735723232289,0.28487999,702.05,700.79,0.2853922]
[1735723240489,0.28487999,702.05,700.87,1.05851545]
[1735723241791,0.28487999,702.05,700.86,1.05851545]
[1735723242793,1.48837209,702.04,700.86,1.05851545]
[1735723242990,1.48837209,702.04,700.79,0.2853922]
[1735723246592,1.48837209,702.04,700.86,1.05851545]
[1735723247895,1.48837209,702.04,700.9,1.05851545]
[1735723248898,1.48837209,702.04,700.91,1.05851545]
[1735723250200,1.48837209,702.04,700.9,1.05851545]
[1735723251099,1.48837209,702.04,700.86,1.05851545]
[1735723251299,0.26238795,702.03,700.86,1.05851545]
[1735723252194,0.26238795,702.03,700.81,1.05851545]
[1735723252696,1.48837209,702.04,700.81,1.05851545]
[1735723252898,0.26239274,702.03,700.81,1.05851545]
[1735723253299,0.26239397,702.02,700.81,1.05851545]
[1735723253496,1.48837209,702.04,700.79,1.34390765]
[1735723253699,0.26239444,702.03,700.79,1.34390765]
[1735723254000,0.26239467,702.02,700.79,1.34390765]
[1735723254196,1.48837209,702.04,700.79,1.34390765]
[1735723254403,0.26239985,702.03,700.79,1.34390765]
[1735723255504,0.26239985,702.03,700.83,1.05851545]
[1735723256102,0.26239718,702.02,700.83,1.05851545]
[1735723256408,0.26239718,702.01,700.83,1.05851545]
[1735723256707,0.26239718,702.0,700.84,1.05851545]
[1735723256907,0.26239718,701.99,700.84,1.05851545]
[1735723257102,0.26239718,701.98,700.84,1.05851545]
[1735723257306,0.26239718,701.97,700.84,1.05851545]
[1735723257502,0.26239718,701.96,700.84,1.05851545]
[1735723257801,0.26239718,701.95,700.83,1.05851545]
[1735723258007,1.48861615,701.95,700.83,1.05851545]
[1735723258709,0.26241489,701.94,700.83,1.05851545]
[1735723258910,0.26241489,701.94,700.79,1.34390765]
[1735723259909,0.26241489,701.94,700.79,0.2853922]
[1735723260808,1.48861615,701.95,700.79,0.2853922]
[1735723261009,0.2624517,701.94,700.79,0.2853922]
[1735723261513,0.26244387,701.93,700.79,0.2853922]
[1735723261710,0.26244387,701.92,700.79,0.2853922]
[1735723261906,0.26244387,701.91,700.79,0.2853922]
[1735723262111,0.26244387,701.9,700.79,0.2853922]
[1735723262313,0.26244387,701.89,700.79,0.2853922]
[1735723262513,0.26244387,701.88,700.79,0.2853922]
[1735723262809,0.26244387,701.87,700.79,0.2853922]
[1735723263115,0.26244387,701.86,700.79,0.2853922]
[1735723263415,0.26244387,701.85,700.79,0.2853922]
[1735723263608,0.26241953,701.85,700.79,0.2853922]
[1735723263813,1.77353672,701.95,700.79,0.2853922]
[1735723264015,0.26240604,701.94,700.79,0.2853922]
[1735723264913,0.26239532,701.93,700.79,0.2853922]
[1735723265214,1.77353672,701.95,700.79,0.2853922]
[1735723265418,0.26239005,701.94,700.79,0.2853922]
[1735723265713,0.26239094,701.93,700.79,0.2853922]
[1735723265912,1.77353672,701.95,700.79,0.2853922]
[1735723266113,0.26239171,701.94,700.79,0.2853922]
[1735723268218,0.26239785,701.93,700.79,0.2853922]
[1735723268519,0.26239785,701.92,700.79,0.2853922]
[1735723268714,1.77353672,701.95,700.79,0.2853922]
[1735723269119,0.26237517,701.94,700.79,0.2853922]
[1735723269721,1.77353672,701.95,700.83,1.05851545]
[1735723270615,1.77353672,701.95,700.79,0.2853922]
[1735723271321,0.28492057,701.95,700.79,0.2853922]
[1735723271816,0.28492057,701.95,700.8,1.05851545]
[1735723273026,0.28492057,701.95,700.83,1.05851545]
[1735723274117,0.28492057,701.95,700.84,1.05851545]
[1735723275424,0.28492057,701.95,700.89,1.05851545]
[1735723276213,0.28492057,701.95,700.91,1.05851545]
[1735723279522,0.28492057,701.95,700.79,0.2853922]
[1735723279523,0.28492057,701.95,700.92,1.05851545]
[1735723280716,0.28492057,701.95,700.99,1.05851545]
[1735723282023,0.28492057,701.95,701.01,1.05851545]
[1735723282923,0.28492057,701.95,700.99,1.05851545]
[1735723284020,0.28492057,701.95,701.0,1.05851545]
[1735723284927,0.28492057,701.95,700.97,1.05851545]
[1735723286125,0.28492057,701.95,700.94,1.05851545]
[1735723287221,0.28492057,701.95,700.92,1.05851545]
[1735723287921,0.28492057,701.95,700.83,1.05851545]
[1735723289129,0.28492057,701.95,700.84,1.05851545]
[1735723289924,0.2623762,701.94,700.84,1.05851545]
[1735723290326,0.2623762,701.94,700.9,1.05851545]
[1735723291532,0.2623762,701.94,700.95,1.05851545]
[1735723291728,0.28492057,701.95,700.95,1.05851545]
[1735723291933,0.26237144,701.94,700.95,1.05851545]
[1735723292536,0.26236552,701.93,700.96,1.05851545]
[1735723292732,0.28492057,701.95,700.96,1.05851545]
[1735723292931,0.26237399,701.94,700.96,1.05851545]
[1735723293538,0.26237749,701.93,700.96,1.05851545]
[1735723293839,0.26237749,701.93,700.79,0.2853922]
[1735723293840,0.26237749,701.92,700.92,1.05851545]
[1735723294034,0.28492057,701.95,700.92,1.05851545]
[1735723294229,0.26237731,701.94,700.92,1.05851545]
[1735723294639,0.26238121,701.93,700.92,1.05851545]
[1735723294838,0.28492057,701.95,700.92,1.05851545]
[1735723295032,0.28492057,701.95,700.93,1.05851545]
[1735723296541,0.28492057,701.95,700.79,0.2853922]
[1735723300544,1.06616741,702.16,700.79,0.2853922]
[1735723301443,1.48846758,702.17,700.79,0.2853922]
[1735723304846,1.48846758,702.17,700.91,1.05851545]
[1735723305542,0.26230556,702.16,700.92,0.28533926]
[1735723305839,1.48846758,702.17,700.92,0.28533926]
[1735723306039,1.48846758,702.17,700.98,1.05851545]
[1735723307342,1.48846758,702.17,701.13,1.05851545]
[1735723308549,1.48846758,702.17,701.08,1.05851545]
[1735723309842,1.48846758,702.17,701.05,1.05851545]
[1735723312245,1.48846758,702.17,701.02,1.05851545]
[1735723313347,1.48846758,702.17,700.92,0.28533926]
[1735723313348,1.48846758,702.17,701.05,1.05851545]
[1735723314050,1.06616741,702.57,701.05,1.05851545]
[1735723314251,0.63564189,702.9,701.01,1.05851545]
[1735723314252,1.48802206,702.33,701.01,1.05851545]
[1735723314454,1.06616741,702.55,701.01,1.05851545]
[1735723314753,1.48794784,702.33,701.02,0.28529856]
[1735723314947,0.28468129,702.54,701.02,0.28529856]
[1735723315152,0.26224868,702.53,701.05,1.05851545]
[1735723315350,0.2846894,702.52,701.05,1.05851545]
[1735723315545,0.54693303,702.52,701.05,1.05851545]
[1735723315852,0.26224363,702.51,701.05,1.05851545]
[1735723316054,0.2846894,702.52,701.05,1.05851545]
[1735723316355,1.75000662,702.51,701.07,1.05851545]
[1735723316554,0.26224432,702.5,701.07,1.05851545]
[1735723316753,0.24696748,702.5,701.08,0.28527414]
[1735723316954,1.4877623,702.51,701.08,0.28527414]
[1735723317655,0.26224241,702.5,701.09,1.05851545]
[1735723317855,0.26224241,702.5,701.1,0.28526601]
[1735723318056,1.4877623,702.51,701.1,0.28526601]
[1735723318248,0.26221203,702.5,701.1,0.28526601]
[1735723318452,0.26221203,702.5,701.13,1.05851545]
[1735723318649,0.26221203,702.5,701.14,0.28524973]
[1735723319464,0.26221203,702.5,701.14,1.34376518]
[1735723320666,0.26221056,702.49,701.14,1.34376518]
[1735723320959,0.26221056,702.48,701.14,1.34376518]
[1735723321160,0.26221056,702.47,701.14,1.34376518]
[1735723321461,1.4877623,702.51,701.14,1.34376518]
[1735723321462,0.26221056,702.46,701.14,0.28524973]
[1735723321765,0.26221056,702.45,701.14,0.28524973]
[1735723321963,0.26221056,702.44,701.14,0.28524973]
[1735723322164,0.26221056,702.43,701.14,0.28524973]
[1735723322464,1.4877623,702.51,701.14,0.28524973]
[1735723322665,0.26221324,702.5,701.14,0.28524973]
[1735723323265,0.26224257,702.49,701.14,0.28524973]
[1735723323467,0.26224257,702.48,701.14,0.28524973]
[1735723323662,0.26224257,702.47,701.14,0.28524973]
[1735723323859,0.26224257,702.46,701.14,0.28524973]
[1735723324063,0.26224257,702.45,701.14,0.28524973]
[1735723324260,0.26224257,702.44,701.14,0.28524973]
[1735723324463,0.26224257,702.43,701.14,0.28524973]
[1735723324667,0.26224257,702.42,701.14,0.28524973]
[1735723324858,0.26224257,702.41,701.14,0.28524973]
[1735723325059,1.4877623,702.51,701.14,0.28524973]
[1735723325360,0.54695446,702.5,701.14,0.28524973]
[1735723325565,0.54695852,702.49,701.14,0.28524973]
[1735723325864,0.54696257,702.48,701.14,0.28524973]
[1735723326057,0.54696662,702.47,701.14,0.28524973]
[1735723326258,0.26225696,702.46,701.14,0.28524973]
[1735723326458,0.54697068,702.46,701.14,0.28524973]
[1735723326664,0.26225696,702.45,701.14,0.28524973]
[1735723327465,0.28472182,702.44,701.14,0.28524973]
[1735723327665,0.26225696,702.43,701.14,0.28524973]
[1735723327965,0.28472993,702.42,701.14,0.28524973]
[1735723328160,0.26225696,702.41,700.84,1.05851545]
[1735723328368,0.26225696,702.41,698.87,3.72810147]
[1735723328369,0.26225696,702.41,700.8,1.05851545]
[1735723329468,1.06616741,702.37,700.71,1.05851545]
[1735723329667,0.26225696,702.36,700.71,1.05851545]
[1735723330270,0.28476236,702.34,700.71,1.05851545]
[1735723330565,0.26237473,702.33,700.71,1.05851545]
[1735723330771,0.26237473,702.33,700.69,1.05851545]
[1735723330972,0.26237013,702.32,700.69,1.05851545]
[1735723331170,0.26236723,702.31,700.69,1.05851545]
[1735723331365,0.26236723,702.3,700.69,1.05851545]
[1735723331571,0.26236723,702.29,700.69,1.05851545]
[1735723331771,0.54715392,702.28,700.69,1.05851545]
[1735723331969,0.26236723,702.27,700.69,1.05851545]
[1735723332168,0.2847948,702.26,700.69,1.05851545]
[1735723332369,0.26236723,702.25,700.69,1.05851545]
[1735723332967,0.28480291,702.24,700.69,1.05851545]
[1735723333166,0.26236723,702.23,700.69,1.05851545]
[1735723333371,0.26236723,702.23,700.62,1.05851545]
[1735723333672,0.28481102,702.22,700.63,0.28545737]
[1735723333872,0.26236723,702.21,700.63,0.28545737]
[1735723334373,0.26236723,702.21,700.63,1.34397282]
[1735723335672,0.26239215,702.2,700.63,1.34397282]
[1735723335872,0.26239215,702.19,700.63,1.34397282]
[1735723336074,0.26239215,702.18,700.63,1.34397282]
[1735723336271,0.26239215,702.17,700.64,1.05851545]
[1735723336466,0.26239215,702.16,700.64,1.05851545]
[1735723336771,0.26239215,702.15,700.64,1.05851545]
[1735723336971,0.26239215,702.14,700.64,1.05851545]
[1735723337172,0.26239215,702.13,700.64,1.05851545]
[1735723337373,0.26239215,702.12,700.64,1.05851545]
[1735723337670,0.26239215,702.11,700.64,1.05851545]
[1735723337874,0.26239215,702.1,700.65,1.05851545]
[1735723338169,0.26239215,702.09,700.65,1.05851545]
[1735723338373,1.48856839,702.09,700.65,1.05851545]
[1735723338575,0.26239215,702.08,700.65,1.05851545]
[1735723338872,0.26240004,702.07,700.65,1.05851545]
[1735723339068,0.26240004,702.06,700.65,1.05851545]
[1735723339370,0.26240004,702.05,700.66,1.05851545]
[1735723339569,0.26240004,702.04,700.66,1.05851545]
[1735723339773,0.26240004,702.03,700.66,1.05851545]
[1735723339975,0.26240004,702.02,700.66,1.05851545]
[1735723340275,0.26240004,702.01,700.63,0.28545737]
[1735723340569,1.48856839,702.09,700.63,0.28545737]
[1735723340775,0.26239273,702.08,700.63,0.28545737]
[1735723341176,1.48856839,702.09,700.63,0.28545737]
[1735723348273,0.2623951,702.08,700.63,0.28545737]
[1735723348478,1.48856839,702.09,700.63,0.28545737]
[1735723348676,0.26239975,702.08,700.63,0.28545737]
[1735723348977,1.48856839,702.09,700.63,0.28545737]
[1735723351679,0.26237029,702.08,700.63,0.28545737]
[1735723351972,0.26237069,702.07,700.63,0.28545737]
[1735723352379,1.48856839,702.09,700.66,1.05851545]
[1735723352581,0.26236403,702.08,700.66,1.05851545]
[1735723352780,0.26236403,702.08,700.67,0.28544107]
[1735723353279,1.48856839,702.09,700.67,0.28544107]
[1735723353581,1.48856839,702.09,700.75,1.05851545]
[1735723354981,1.48856839,702.09,700.79,1.05851545]
[1735723356381,0.28481102,702.22,700.84,1.05851545]
[1735723356579,1.48830844,702.17,700.84,1.05851545]
[1735723358477,1.48830844,702.17,700.85,1.05851545]
[1735723359585,1.48830844,702.17,700.89,1.05851545]
[1735723359882,1.48830844,702.17,700.9,0.28534741]
[1735723361585,0.26231834,702.16,700.9,0.28534741]
[1735723361785,0.26232617,702.15,700.9,0.28534741]
[1735723361989,0.26232617,702.14,700.9,0.28534741]
[1735723362288,0.26232617,702.13,700.9,0.28534741]
[1735723362487,0.26232617,702.12,700.9,0.28534741]
[1735723362688,0.26232617,702.11,700.9,0.28534741]
[1735723362890,0.26232617,702.1,700.9,0.28534741]
[1735723363187,0.26232617,702.09,701.03,1.05851545]
[1735723363388,0.26232617,702.08,701.03,1.05851545]
[1735723363588,0.26232617,702.07,701.03,1.05851545]
[1735723363886,0.26232617,702.06,701.03,1.05851545]
[1735723364093,0.26232617,702.05,701.03,1.05851545]
[1735723364293,0.26232617,702.04,701.08,1.05851545]
[1735723364589,0.26232617,702.03,701.08,1.05851545]
[1735723364784,1.48830844,702.17,701.08,1.05851545]
[1735723364989,0.26232103,702.16,701.08,1.05851545]
[1735723365385,0.26232103,702.16,700.9,0.28534741]
[1735723365386,0.26232103,702.16,701.05,1.05851545]
[1735723367089,1.48830844,702.17,701.05,1.05851545]
[1735723367290,0.2623219,702.16,701.05,1.05851545]
[1735723367887,0.2623219,702.16,700.9,0.28534741]
[1735723367888,0.2623219,702.16,701.04,1.05851545]
[1735723368794,0.2623219,702.16,701.01,1.05851545]
[1735723369594,1.48830844,702.17,701.01,1.05851545]
[1735723369794,0.26231817,702.16,701.01,1.05851545]
[1735723369990,0.26231817,702.16,701.03,1.05851545]
[1735723370394,0.26231897,702.15,701.03,1.05851545]
[1735723370696,1.48830844,702.17,701.03,1.05851545]
[1735723371090,1.48830844,702.17,700.91,1.05851545]
[1735723372295,1.48830844,702.17,700.9,1.34386286]
[1735723373598,1.48830844,702.17,700.9,0.28534741]
[1735723384700,0.26236597,702.16,700.9,0.28534741]
[1735723385404,1.48830844,702.17,700.9,0.28534741]
[1735723385405,0.2623676,702.15,700.9,0.28534741]
[1735723385600,0.2623676,702.14,700.9,0.28534741]
[1735723385804,0.2623676,702.13,700.9,0.28534741]
[1735723386005,0.2623676,702.12,700.9,0.28534741]
[1735723386209,0.2623676,702.11,700.9,0.28534741]
[1735723386399,1.48830844,702.17,700.9,0.28534741]
[1735723386400,0.2623676,702.1,700.9,0.28534741]
[1735723386605,0.2623676,702.09,700.9,0.28534741]
[1735723386806,0.2623676,702.08,700.95,1.05851545]
[1735723387004,0.2623676,702.07,700.95,1.05851545]
[1735723387507,0.26236761,702.06,700.95,1.05851545]
[1735723387710,0.26236761,702.05,700.95,1.05851545]
[1735723387904,0.26236761,702.04,700.95,1.05851545]
[1735723388103,0.26236761,702.03,700.95,1.05851545]
[1735723388308,0.26236761,702.02,700.95,1.05851545]
[1735723388613,1.48846758,702.08,700.95,1.05851545]
[1735723388908,0.26237015,702.07,700.94,1.05851545]
[1735723389308,1.48846758,702.08,700.94,1.05851545]
[1735723389309,0.26237298,702.06,700.94,1.05851545]
[1735723389507,0.26237298,702.05,700.94,1.05851545]
[1735723389808,0.26237298,702.04,700.94,1.05851545]
[1735723390005,0.26237298,702.04,700.9,0.28534741]
[1735723390006,0.26237298,702.03,700.92,1.05851545]
[1735723390308,1.48846758,702.08,700.92,1.05851545]
[1735723390309,0.26238225,702.02,700.92,1.05851545]
[1735723390508,0.26238225,702.01,700.92,1.05851545]
[1735723390809,0.26238225,702.0,700.92,1.05851545]
[1735723391012,0.26238225,701.99,700.9,0.28534741]
[1735723391209,0.26238225,701.98,700.9,0.28534741]
[1735723391509,0.26238225,701.97,700.9,0.28534741]
[1735723391709,0.26238225,701.96,700.9,0.28534741]
[1735723391904,0.26238225,701.95,700.9,0.28534741]
[1735723392109,0.26238225,701.94,700.9,0.28534741]
[1735723392310,0.26238225,701.93,700.9,0.28534741]
[1735723392509,0.26238225,701.92,700.9,0.28534741]
[1735723392710,0.2624265,701.91,700.9,0.28534741]
[1735723392911,0.2624265,701.9,700.9,0.28534741]
[1735723393111,0.2624265,701.89,700.9,0.28534741]
[1735723393303,1.06616741,702.04,700.9,0.28534741]
[1735723393507,1.06616741,701.95,700.9,0.28534741]
[1735723393709,0.26244111,701.94,700.9,0.28534741]
[1735723395309,0.26243176,701.93,700.9,0.28534741]
[1735723395509,0.26243176,701.92,700.9,0.28534741]
[1735723395810,0.26243176,701.91,700.9,0.28534741]
[1735723396009,0.26243176,701.9,700.9,0.28534741]
[1735723396209,0.26243176,701.89,700.9,0.28534741]
[1735723396405,0.26243176,701.88,700.9,0.28534741]
[1735723396604,0.26243176,701.87,700.68,1.05851545]
[1735723396804,1.06616741,702.03,700.68,1.05851545]
[1735723397110,0.54732235,702.02,700.67,1.05851545]
[1735723397307,0.54732641,702.01,700.67,1.05851545]
[1735723397509,0.26243019,702.0,700.67,1.05851545]
[1735723397710,1.75130109,702.0,700.67,1.05851545]
[1735723397907,0.26242952,701.99,700.67,1.05851545]
[1735723398814,0.26242952,701.99,700.64,1.05851545]
[1735723399113,0.2849084,701.98,700.64,1.05851545]
[1735723399412,0.26242952,701.97,700.64,1.05851545]
[1735723399613,0.28491651,701.96,700.64,1.05851545]
[1735723399815,0.26242952,701.95,700.63,1.05851545]
[1735723400611,0.26242487,701.94,700.63,1.05851545]
[1735723400913,0.26242487,701.93,700.63,1.05851545]
[1735723401109,0.28491651,701.96,700.65,1.05851545]
[1735723401315,0.2624247,701.95,700.65,1.05851545]
[1735723402616,0.2624247,701.95,700.62,1.05851545]
[1735723403114,0.28491651,701.96,700.62,1.05851545]
[1735723403315,0.26240742,701.95,700.62,1.05851545]
[1735723403716,0.26240742,701.95,700.72,1.05851545]
[1735723405018,0.28491651,701.96,700.68,1.05851545]
[1735723406618,0.28491651,701.96,700.74,1.05851545]
[1735723407618,0.28491651,701.96,700.77,1.05851545]
[1735723408818,0.28491651,701.96,700.72,1.05851545]
[1735723410019,0.28491651,701.96,700.78,1.05851545]
[1735723411119,0.28491651,701.96,700.8,1.05851545]
[1735723414024,0.28491651,701.96,700.82,1.05851545]
[1735723415218,0.28491651,701.96,700.84,1.05851545]
[1735723416025,0.28491651,701.96,700.23,0.28562043]
[1735723416026,0.28491651,701.96,700.79,1.05851545]
[1735723418422,0.28491651,701.96,700.83,1.05851545]
[1735723419626,0.28491651,701.96,700.85,1.05851545]
[1735723425722,0.26238343,701.95,700.85,1.05851545]
[1735723425922,0.28491651,701.96,700.85,1.05851545]
[1735723426126,0.26238363,701.95,700.85,1.05851545]
[1735723426730,0.28491651,701.96,700.85,1.05851545]
[1735723428326,0.26238858,701.95,700.85,1.05851545]
[1735723429023,0.28491651,701.96,700.85,1.05851545]
[1735723429330,0.26238662,701.95,700.85,1.05851545]
[1735723429528,0.28491651,701.96,700.85,1.05851545]
[1735723429725,0.26238753,701.95,700.85,1.05851545]
[1735723430524,0.28491651,701.96,700.85,1.05851545]
[1735723430724,0.26239792,701.95,700.85,1.05851545]
[1735723432132,0.28491651,701.96,700.85,1.05851545]
[1735723432430,0.26242465,701.94,700.86,1.05851545]
[1735723432728,0.2624212,701.93,700.86,1.05851545]
[1735723432929,0.26242465,701.94,700.86,1.05851545]
[1735723432930,0.26241878,701.92,700.86,1.05851545]
[1735723433131,0.26242465,701.94,700.86,1.05851545]
[1735723433132,0.26241878,701.91,700.86,1.05851545]
[1735723433325,0.26241878,701.9,700.84,1.05851545]
[1735723433530,0.26241878,701.89,700.84,1.05851545]
[1735723433730,0.26241878,701.88,700.84,1.05851545]
[1735723433932,0.26241878,701.87,700.84,1.05851545]
[1735723434132,0.26241878,701.86,700.84,1.05851545]
[1735723434330,1.48886029,701.91,700.78,1.05851545]
[1735723434331,1.06616741,701.78,700.78,1.05851545]
[1735723434531,0.26241878,701.77,700.78,1.05851545]
[1735723434927,0.26246013,701.76,700.78,1.05851545]
[1735723435128,0.26246013,701.75,700.78,1.05851545]
[1735723435333,0.26246013,701.74,700.78,1.05851545]
[1735723435534,0.26246013,701.73,700.74,1.05851545]
[1735723435726,0.26246013,701.72,700.74,1.05851545]
[1735723435932,0.26246013,701.71,700.74,1.05851545]
[1735723436132,0.26246013,701.7,700.74,1.05851545]
[1735723436435,1.06616741,701.82,700.78,1.05851545]
[1735723436734,0.26243223,701.81,700.78,1.05851545]
[1735723437136,0.26243223,701.81,700.81,1.05851545]
[1735723437336,1.06616741,701.86,700.81,1.05851545]
[1735723437529,0.2624385,701.85,700.81,1.05851545]
[1735723438235,0.2624385,701.85,700.83,1.05851545]
[1735723438430,0.2624385,701.84,700.83,1.05851545]
[1735723438630,0.2624385,701.83,700.83,1.05851545]
[1735723438834,0.2624385,701.82,700.83,1.05851545]
[1735723439034,0.2624385,701.81,700.83,1.05851545]
[1735723439337,0.2624385,701.8,700.78,1.05851545]
[1735723439531,0.2624385,701.79,700.78,1.05851545]
[1735723439736,0.2624385,701.78,700.78,1.05851545]
[1735723439937,0.26243804,701.77,700.78,1.05851545]
[1735723440238,0.26243804,701.76,700.78,1.05851545]
[1735723440537,1.06616741,701.87,700.78,1.05851545]
[1735723440731,0.26243689,701.86,700.78,1.05851545]
[1735723441538,0.26243689,701.85,700.78,1.05851545]
[1735723441737,0.26243689,701.84,700.78,1.05851545]
[1735723441932,0.26243689,701.83,700.78,1.05851545]
[1735723442235,1.06616741,701.88,700.78,1.05851545]
[1735723442639,1.06616741,701.9,700.78,1.05851545]
[1735723443843,1.48886029,701.91,700.66,1.05851545]
[1735723444642,1.48886029,701.91,700.67,0.28544107]
[1735723444840,1.48886029,701.91,700.68,1.05851545]